[Event "9th Sharjah Cup Women 2018"]
[Site "Sharjah"]
[Date "2018.12.16"]
[Round "4"]
[White "Kejzar, Petra"]
[Black "Nguyen, Thi Mai Hung"]
[Result "1/2-1/2"]
[ECO "A11"]
[WhiteElo "2062"]
[BlackElo "2280"]
[Annotator "NA"]
[PlyCount "137"]
[EventDate "2018.12.14"]
[EventType "swiss"]
[EventCountry "UAE"]
[SourceTitle "playchess.com"]
[Source "ChessBase"]
[SourceQuality "1"]
[TimeControl "5400+30"]

1. c4 {[%emt 0:00:00]} c6 {[%emt 0:00:00]} 2. Nf3 {[%emt 0:00:00]} d5 {[%emt 0:00:04]} 3. e3 {[%emt 0:00:00]} Nf6 {[%emt 0:00:12]} 4. Nc3 {[%emt 0:01:08]} e6 {[%emt 0:06:27]} 5. b3 {[%emt 0:00:21]} Nbd7 {[%emt 0:00:10]} 6. Qc2 {[%emt 0:00:15]} Bd6 {[%emt 0:00:30]} 7. Bb2 {[%emt 0:00:34]} a6 {[%emt 0:02:18]} 8. Be2 {[%emt 0:02:03]} O-O {[%emt 0:04:45]} 9. d4 {[%emt 0:06:47]} Qe7 {[%emt 0:05:26]} 10. O-O {[%emt 0:02:51]} e5 {[%emt 0:05:55]} 11. dxe5 {[%emt 0:01:59]} Nxe5 {[%emt 0:00:04]} 12. cxd5 {[%emt 0:05:52]} cxd5 {[%emt 0:06:58]} 13. Rad1 {[%emt 0:21:56]} Rd8 {[%emt 0:07:24]} 14. Nd4 {[%emt 0:11:02]} Bb4 {[%emt 0:08:25]} 15. Nf3 {[%emt 0:14:39]} Nc6 {[%emt 0:03:05]} 16. Na4 {[%emt 0:05:28]} Ba5 {[%emt 0:07:56]} 17. Qc5 {[%emt 0:03:14]} Qxc5 {[%emt 0:02:26]} 18. Nxc5 {[%emt 0:00:02]} Ne4 {[%emt 0:01:59]} 19. Nxe4 {[%emt 0:02:44]} dxe4 {[%emt 0:00:02]} 20. Ng5 {[%emt 0:03:23]} Bf5 {[%emt 0:10:32]} 21. g4 {[%emt 0:00:28]} Bg6 {[%emt 0:00:19]} 22. h4 {[%emt 0:01:53]} h6 {[%emt 0:00:57]} 23. Nh3 {[%emt 0:00:44]} f6 {[%emt 0:01:42]} 24. g5 {[%emt 0:02:28]} hxg5 {[%emt 0:03:53]} 25. hxg5 {[%emt 0:00:11]} Bf5 {[%emt 0:00:10]} 26. Bc4+ {[%emt 0:01:58]} Kh7 {[%emt 0:01:52]} 27. Nf4 {[%emt 0:01:09]} fxg5 {[%emt 0:06:13]} 28. Ne6 {[%emt 0:00:35]} Bxe6 {[%emt 0:02:44]} 29. Bxe6 {[%emt 0:00:02]} Kg6 {[%emt 0:00:15]} 30. Bd5 {[%emt 0:01:32]} Re8 {[%emt 0:06:46]} 31. Bxc6 {[%emt 0:01:30]} bxc6 {[%emt 0:00:02]} 32. Rd6+ {[%emt 0:00:19]} Kh5 {[%emt 0:02:42]} 33. Rxc6 {[%emt 0:00:41]} Re7 {[%emt 0:00:19]} 34. Kg2 {[%emt 0:00:15]} Bc7 {[%emt 0:01:37]} 35. Rh1+ {[%emt 0:01:17]} Kg4 {[%emt 0:00:02]} 36. Rh7 {[%emt 0:01:03]} Be5 {[%emt 0:00:59]} 37. Bxe5 {[%emt 0:00:21]} Rxe5 {[%emt 0:00:04]} 38. Rxg7 {[%emt 0:00:46]} a5 {[%emt 0:00:06]} 39. Rc4 {[%emt 0:00:32]} Kf5 {[%emt 0:02:26]} 40. Kg3 {[%emt 0:01:05]} Ra6 {[%emt 0:01:19]} 41. Rcc7 {[%emt 0:00:35]} Rd5 {[%emt 0:00:27]} 42. Rcf7+ {[%emt 0:01:40]} Rf6 {[%emt 0:00:01]} 43. Re7 {[%emt 0:01:44]} Rd2 {[%emt 0:01:16]} 44. f3 {[%emt 0:00:12]} Rf8 {[%emt 0:00:37]} 45. fxe4+ {[%emt 0:00:24]} Kf6 {[%emt 0:00:01]} 46. e5+ {[%emt 0:00:21]} Kf5 {[%emt 0:00:03]} 47. Kf3 {[%emt 0:01:00]} Rd3 {[%emt 0:00:53]} 48. Ke2 {[%emt 0:02:07]} Rc3 {[%emt 0:01:04]} 49. Rc7 {[%emt 0:01:38]} Rxc7 {[%emt 0:00:17]} 50. Rxc7 {[%emt 0:00:02]} a4 {[%emt 0:00:13]} 51. b4 {[%emt 0:01:43]} Rh8 {[%emt 0:00:47]} 52. Kd3 {[%emt 0:00:38]} g4 {[%emt 0:00:45]} 53. Rc2 {[%emt 0:00:34]} Rd8+ {[%emt 0:00:11]} 54. Ke2 {[%emt 0:00:06]} Kxe5 {[%emt 0:00:43]} 55. b5 {[%emt 0:00:49]} Rb8 {[%emt 0:00:26]} 56. Rc5+ {[%emt 0:00:33]} Kd6 {[%emt 0:00:35]} 57. Rg5 {[%emt 0:00:05]} a3 {[%emt 0:00:04]} 58. Kd3 {[%emt 0:00:43]} Kc7 {[%emt 0:00:38]} 59. Kc4 {[%emt 0:00:28]} Re8 {[%emt 0:00:14]} 60. Kc5 {[%emt 0:00:16]} Rxe3 {[%emt 0:00:13]} 61. Rg7+ {[%emt 0:00:27]} Kb8 {[%emt 0:01:06]} 62. Kb6 {[%emt 0:00:41]} Re6+ {[%emt 0:00:04]} 63. Ka5 {[%emt 0:00:10]} Re2 {[%emt 0:00:48]} 64. Ka6 {[%emt 0:00:27]} Rxa2 {[%emt 0:00:04]} 65. b6 {[%emt 0:00:08]} Rc2 {[%emt 0:00:06]} 66. Rg8+ {[%emt 0:01:29]} Rc8 {[%emt 0:00:03]} 67. Rxg4 {[%emt 0:00:28]} a2 {[%emt 0:00:31]} 68. Ra4 {[%emt 0:00:20]} Rc2 {[%emt 0:00:13]} 69. Ra3 {[%emt 0:00:26]} 1/2-1/2

[Event "9th Sharjah Cup Women 2018"]
[Site "Sharjah"]
[Date "2018.12.16"]
[Round "4"]
[White "Greibrokk, Ingrid"]
[Black "Shanya Mishra"]
[Result "0-1"]
[ECO "A16"]
[WhiteElo "1857"]
[BlackElo "1978"]
[Annotator "NA"]
[PlyCount "96"]
[EventDate "2018.12.14"]
[EventType "swiss"]
[EventCountry "UAE"]
[SourceTitle "playchess.com"]
[Source "ChessBase"]
[SourceQuality "1"]
[TimeControl "5400+30"]

1. c4 {[%emt 0:00:00]} Nf6 {[%emt 0:00:03]} 2. Nc3 {[%emt 0:00:00]} d5 {[%emt 0:00:47]} 3. cxd5 {[%emt 0:00:07]} Nxd5 {[%emt 0:00:53]} 4. g3 {[%emt 0:00:10]} e5 {[%emt 0:01:12]} 5. Bg2 {[%emt 0:00:06]} Nb6 {[%emt 0:01:02]} 6. Nf3 {[%emt 0:00:41]} Nc6 {[%emt 0:00:55]} 7. O-O {[%emt 0:01:24]} Be7 {[%emt 0:01:26]} 8. d3 {[%emt 0:00:47]} O-O {[%emt 0:01:13]} 9. a3 {[%emt 0:02:02]} a5 {[%emt 0:06:05]} 10. b3 {[%emt 0:00:25]} Be6 {[%emt 0:04:14]} 11. Bb2 {[%emt 0:02:29]} f6 {[%emt 0:03:20]} 12. Rc1 {[%emt 0:00:52]} Bd6 {[%emt 0:03:42]} 13. d4 {[%emt 0:12:37]} Nxd4 {[%emt 0:06:39]} 14. Nxd4 {[%emt 0:00:07]} exd4 {[%emt 0:00:49]} 15. Nb5 {[%emt 0:10:49]} c5 {[%emt 0:04:09]} 16. e3 {[%emt 0:03:45]} a4 {[%emt 0:05:51]} 17. Nxd6 {[%emt 0:15:11]} Qxd6 {[%emt 0:01:04]} 18. exd4 {[%emt 0:01:17]} axb3 {[%emt 0:10:27]} 19. dxc5 {[%emt 0:06:01]} Qxd1 {[%emt 0:00:13]} 20. Rfxd1 {[%emt 0:01:30]} Na4 {[%emt 0:02:21]} 21. Rd6 {[%emt 0:15:32]} Bf5 {[%emt 0:12:00]} 22. Bxb7 {[%emt 0:19:04]} Rab8 {[%emt 0:05:28]} 23. Bd5+ {[%emt 0:01:08]} Kh8 {[%emt 0:00:12]} 24. c6 {[%emt 0:01:29]} Nxb2 {[%emt 0:03:29]} 25. c7 {[%emt 0:00:04]} Rbe8 {[%emt 0:02:57]} 26. Bc6 {[%emt 0:02:20]} Rc8 {[%emt 0:01:29]} 27. Bb7 {[%emt 0:00:46]} Na4 {[%emt 0:01:08]} 28. Bxc8 {[%emt 0:00:25]} Bxc8 {[%emt 0:00:04]} 29. Rcd1 {[%emt 0:01:04]} b2 {[%emt 0:00:53]} 30. Rd8 {[%emt 0:01:33]} Kg8 {[%emt 0:00:11]} 31. Kg2 {[%emt 0:00:23]} Bb7+ {[%emt 0:01:42]} 32. f3 {[%emt 0:00:52]} Nc3 {[%emt 0:00:27]} 33. Re1 {[%emt 0:00:51]} b1=Q {[%emt 0:00:27]} 34. Rxb1 {[%emt 0:00:25]} Nxb1 {[%emt 0:00:04]} 35. Rb8 {[%emt 0:00:39]} Nxa3 {[%emt 0:02:15]} 36. Rxb7 {[%emt 0:00:05]} Nc4 {[%emt 0:00:06]} 37. Rb8 {[%emt 0:00:36]} Nd6 {[%emt 0:00:07]} 38. f4 {[%emt 0:00:42]} Kf7 {[%emt 0:00:13]} 39. Rxf8+ {[%emt 0:00:39]} Kxf8 {[%emt 0:00:05]} 40. f5 {[%emt 0:00:15]} Ke7 {[%emt 0:00:04]} 41. Kf3 {[%emt 0:00:28]} Kd7 {[%emt 0:00:05]} 42. g4 {[%emt 0:00:20]} Nf7 {[%emt 0:00:26]} 43. h4 {[%emt 0:00:11]} Kxc7 {[%emt 0:00:07]} 44. Kf4 {[%emt 0:00:42]} h6 {[%emt 0:00:05]} 45. g5 {[%emt 0:00:33]} hxg5+ {[%emt 0:00:05]} 46. hxg5 {[%emt 0:00:05]} Nxg5 {[%emt 0:00:22]} 47. Kg4 {[%emt 0:00:05]} Nf7 {[%emt 0:00:04]} 48. Kh5 {[%emt 0:00:14]} Ne5 {[%emt 0:00:05]} 0-1

[Event "9th Sharjah Cup Women 2018"]
[Site "Sharjah"]
[Date "2018.12.16"]
[Round "4"]
[White "Al Ghafri, Wafia"]
[Black "Drljevic, Ljilja"]
[Result "0-1"]
[ECO "A41"]
[WhiteElo "1675"]
[BlackElo "2208"]
[Annotator "NA"]
[PlyCount "84"]
[EventDate "2018.12.14"]
[EventType "swiss"]
[EventCountry "UAE"]
[SourceTitle "playchess.com"]
[Source "ChessBase"]
[SourceQuality "1"]
[TimeControl "5400+30"]

1. d4 {[%emt 0:00:00]} d6 {[%emt 0:00:00]} 2. Nf3 {[%emt 0:00:00]} Nf6 {[%emt 0:00:17]} 3. g3 {[%emt 0:00:00]} g6 {[%emt 0:00:48]} 4. Bg2 {[%emt 0:00:20]} Bg7 {[%emt 0:00:02]} 5. c4 {[%emt 0:01:16]} O-O {[%emt 0:00:11]} 6. O-O {[%emt 0:00:10]} Nbd7 {[%emt 0:01:32]} 7. Nc3 {[%emt 0:01:30]} c6 {[%emt 0:01:11]} 8. a4 {[%emt 0:06:08]} a5 {[%emt 0:04:45]} 9. e4 {[%emt 0:04:05]} e5 {[%emt 0:00:24]} 10. Be3 {[%emt 0:04:46]} Ng4 {[%emt 0:04:59]} 11. Bc1 {[%emt 0:05:49]} exd4 {[%emt 0:01:03]} 12. Nxd4 {[%emt 0:01:29]} Nge5 {[%emt 0:04:25]} 13. b3 {[%emt 0:08:58]} Nc5 {[%emt 0:05:32]} 14. h3 {[%emt 0:08:45]} Ned3 {[%emt 0:11:14]} 15. Be3 {[%emt 0:04:05]} Qe7 {[%emt 0:02:36]} 16. Qc2 {[%emt 0:06:44]} Nb4 {[%emt 0:03:11]} 17. Qb1 {[%emt 0:05:42]} Bd7 {[%emt 0:06:23]} 18. Rd1 {[%emt 0:05:14]} f5 {[%emt 0:08:30]} 19. f3 {[%emt 0:09:46]} fxe4 {[%emt 0:02:16]} 20. Nxe4 {[%emt 0:05:27]} Nxe4 {[%emt 0:02:56]} 21. Qxe4 {[%emt 0:01:11]} Qxe4 {[%emt 0:00:54]} 22. fxe4 {[%emt 0:00:13]} c5 {[%emt 0:00:23]} 23. Kh2 {[%emt 0:04:47]} Bxd4 {[%emt 0:05:15]} 24. Bxd4 {[%emt 0:00:45]} cxd4 {[%emt 0:00:03]} 25. Rxd4 Nc2 {[%emt 0:00:13]} 26. Rxd6 {[%emt 0:02:25]} Nxa1 {[%emt 0:00:13]} 27. Rxd7 {[%emt 0:00:09]} Rad8 {[%emt 0:00:41]} 28. Rxb7 {[%emt 0:00:20]} Rd2 {[%emt 0:00:14]} 29. Kg1 {[%emt 0:00:43]} Rd1+ {[%emt 0:00:06]} 30. Kh2 {[%emt 0:00:10]} Rf2 {[%emt 0:00:06]} 31. g4 {[%emt 0:02:39]} Rdd2 {[%emt 0:00:10]} 32. Kg3 {[%emt 0:01:04]} Rxg2+ {[%emt 0:00:47]} 33. Kf4 {[%emt 0:00:19]} Rgf2+ {[%emt 0:01:31]} 34. Ke5 {[%emt 0:00:31]} Rf7 {[%emt 0:00:39]} 35. Rb5 {[%emt 0:00:53]} Kg7 {[%emt 0:00:36]} 36. c5 {[%emt 0:00:44]} Re7+ {[%emt 0:01:04]} 37. Kf4 {[%emt 0:00:25]} Rd4 {[%emt 0:01:58]} 38. c6 {[%emt 0:00:42]} Rdxe4+ {[%emt 0:00:35]} 39. Kf3 {[%emt 0:00:33]} Re3+ {[%emt 0:00:49]} 40. Kf4 {[%emt 0:00:47]} h6 {[%emt 0:00:41]} 41. Rb7 {[%emt 0:01:26]} g5+ {[%emt 0:00:07]} 42. Kf5 {[%emt 0:00:20]} R3e5# {[%emt 0:00:05] Kxe5} 0-1

[Event "9th Sharjah Cup Women 2018"]
[Site "Sharjah"]
[Date "2018.12.16"]
[Round "4"]
[White "Choksi, Khushi"]
[Black "Mona, Khaled"]
[Result "0-1"]
[ECO "D02"]
[WhiteElo "1589"]
[BlackElo "2158"]
[Annotator "NA"]
[PlyCount "106"]
[EventDate "2018.12.14"]
[EventType "swiss"]
[EventCountry "UAE"]
[SourceTitle "playchess.com"]
[Source "ChessBase"]
[SourceQuality "1"]
[TimeControl "5400+30"]

1. d4 {[%emt 0:00:00]} d5 {[%emt 0:00:00]} 2. Nf3 {[%emt 0:00:00]} e6 {[%emt 0:00:00]} 3. e3 {[%emt 0:00:04]} f5 {[%emt 0:00:10]} 4. c4 {[%emt 0:00:20]} Nf6 {[%emt 0:00:07]} 5. Nbd2 {[%emt 0:02:15]} c6 {[%emt 0:00:04]} 6. Bd3 {[%emt 0:01:09]} Bd6 {[%emt 0:00:07]} 7. Ne5 {[%emt 0:00:30]} O-O {[%emt 0:00:14]} 8. O-O {[%emt 0:00:42]} Bxe5 {[%emt 0:01:39]} 9. dxe5 {[%emt 0:00:11]} Ng4 {[%emt 0:00:05]} 10. Nf3 {[%emt 0:09:49]} Nd7 {[%emt 0:00:17]} 11. cxd5 {[%emt 0:01:26]} exd5 {[%emt 0:00:24]} 12. b3 {[%emt 0:11:18]} Ndxe5 {[%emt 0:00:13]} 13. Nxe5 {[%emt 0:00:08]} Nxe5 {[%emt 0:00:05]} 14. Bc2 {[%emt 0:03:42]} Ng4 {[%emt 0:04:42]} 15. Bb2 {[%emt 0:05:36]} Qd6 {[%emt 0:04:06]} 16. g3 {[%emt 0:02:30]} Qh6 {[%emt 0:00:13]} 17. h4 {[%emt 0:03:40]} Nf6 {[%emt 0:00:34]} 18. Qf3 {[%emt 0:05:46]} Ne4 {[%emt 0:00:39]} 19. Qf4 {[%emt 0:01:09]} Qxf4 {[%emt 0:00:24]} 20. exf4 {[%emt 0:00:15]} b6 {[%emt 0:00:19]} 21. Kg2 {[%emt 0:03:08]} Ba6 {[%emt 0:03:40]} 22. Rfe1 {[%emt 0:02:25]} Rae8 {[%emt 0:00:31]} 23. Rad1 {[%emt 0:02:10]} Bb7 {[%emt 0:04:59]} 24. Be5 {[%emt 0:04:47]} g6 {[%emt 0:03:49]} 25. f3 {[%emt 0:05:16]} Nf6 {[%emt 0:01:16]} 26. Kf2 {[%emt 0:03:45]} Kf7 {[%emt 0:00:14]} 27. b4 {[%emt 0:02:09]} Ra8 {[%emt 0:04:49]} 28. Bb3 {[%emt 0:03:24]} Rfd8 {[%emt 0:02:12]} 29. Bc7 {[%emt 0:01:21]} Rd7 {[%emt 0:00:26]} 30. Be5 {[%emt 0:00:12]} a5 {[%emt 0:01:27]} 31. Bd4 {[%emt 0:01:47]} axb4 {[%emt 0:07:09]} 32. Bxb6 {[%emt 0:00:17]} Ba6 {[%emt 0:00:04]} 33. Bc5 {[%emt 0:01:49]} Rb7 {[%emt 0:00:08]} 34. Rb1 {[%emt 0:12:58]} Bd3 {[%emt 0:00:45]} 35. Rb2 {[%emt 0:01:20]} Ra5 {[%emt 0:00:31]} 36. Rc1 {[%emt 0:04:18]} Bc4 {[%emt 0:01:30]} 37. Bd4 {[%emt 0:01:01]} c5 {[%emt 0:11:25]} 38. Bxc4 {[%emt 0:02:10]} dxc4 {[%emt 0:00:04]} 39. Bxf6 {[%emt 0:00:33]} Kxf6 {[%emt 0:00:05]} 40. Rxc4 {[%emt 0:00:09]} Ke6 {[%emt 0:00:04]} 41. Rbc2 {[%emt 0:00:54]} Kd5 {[%emt 0:00:37]} 42. Ke2 {[%emt 0:00:55]} Rbb5 {[%emt 0:03:08]} 43. g4 {[%emt 0:02:29]} Ra3 {[%emt 0:00:14]} 44. gxf5 {[%emt 0:00:57]} gxf5 {[%emt 0:00:06]} 45. h5 {[%emt 0:00:14]} Ra6 {[%emt 0:00:52]} 46. Kd3 {[%emt 0:00:45]} Rba5 {[%emt 0:00:14]} 47. Kd2 {[%emt 0:01:11]} Rh6 {[%emt 0:00:10]} 48. Kd3 {[%emt 0:00:24]} Rxh5 {[%emt 0:00:08]} 49. Ke3 {[%emt 0:00:31]} Rh1 {[%emt 0:00:32]} 50. Rc1 {[%emt 0:00:24]} Ra3+ {[%emt 0:00:25]} 51. Kf2 {[%emt 0:00:14]} Rxa2+ {[%emt 0:00:16]} 52. Kg3 {[%emt 0:00:16]} Rxc1 {[%emt 0:00:12]} 53. Rxc1 {[%emt 0:00:06]} b3 {[%emt 0:00:03]} 0-1

[Event "9th Sharjah Cup Women 2018"]
[Site "Sharjah"]
[Date "2018.12.16"]
[Round "4"]
[White "Amal Fadel S M Alshamsi"]
[Black "Alieva, Alexandra"]
[Result "0-1"]
[ECO "C55"]
[WhiteElo "1520"]
[BlackElo "2102"]
[Annotator "NA"]
[PlyCount "96"]
[EventDate "2018.12.14"]
[EventType "swiss"]
[EventCountry "UAE"]
[SourceTitle "playchess.com"]
[Source "ChessBase"]
[SourceQuality "1"]
[TimeControl "5400+30"]

1. e4 {[%emt 0:00:00]} e5 {[%emt 0:00:00]} 2. Nf3 {[%emt 0:00:00]} Nc6 {[%emt 0:00:00]} 3. Bc4 {[%emt 0:00:00]} Nf6 {[%emt 0:00:01]} 4. d3 {[%emt 0:00:00]} h6 {[%emt 0:00:21]} 5. Nbd2 {[%emt 0:00:03]} Bc5 {[%emt 0:00:19]} 6. Nf1 {[%emt 0:01:15]} d6 {[%emt 0:02:56]} 7. c3 {[%emt 0:00:23]} Bb6 {[%emt 0:00:19]} 8. h3 {[%emt 0:00:46]} O-O {[%emt 0:00:38]} 9. Bb3 {[%emt 0:06:53]} Ne7 {[%emt 0:00:25]} 10. g4 {[%emt 0:01:47]} Nh7 {[%emt 0:05:24]} 11. g5 {[%emt 0:05:50]} h5 {[%emt 0:05:32]} 12. Ng3 {[%emt 0:04:24]} g6 {[%emt 0:02:28]} 13. Nh4 {[%emt 0:07:15]} Be6 {[%emt 0:02:49]} 14. Bxe6 {[%emt 0:08:52]} fxe6 {[%emt 0:00:09]} 15. O-O {[%emt 0:00:27]} Qe8 {[%emt 0:08:13]} 16. Ng2 {[%emt 0:06:03]} Qf7 {[%emt 0:05:52]} 17. Be3 {[%emt 0:03:30]} Qf3 {[%emt 0:03:41]} 18. Qxf3 {[%emt 0:04:51]} Rxf3 {[%emt 0:00:06]} 19. Bxb6 {[%emt 0:00:06]} axb6 {[%emt 0:00:08]} 20. Ne1 {[%emt 0:01:14]} Rf7 {[%emt 0:04:17]} 21. h4 {[%emt 0:00:55]} d5 {[%emt 0:00:18]} 22. exd5 {[%emt 0:02:09]} exd5 {[%emt 0:00:30]} 23. Ng2 {[%emt 0:00:22]} Nf8 {[%emt 0:00:52]} 24. f4 {[%emt 0:00:55]} Nd7 {[%emt 0:04:41]} 25. fxe5 {[%emt 0:01:00]} Nxe5 {[%emt 0:00:52]} 26. Rxf7 {[%emt 0:00:46]} Kxf7 {[%emt 0:00:44]} 27. Nf4 {[%emt 0:05:29]} Nf3+ {[%emt 0:01:46]} 28. Kf2 {[%emt 0:00:58]} Nxh4 {[%emt 0:01:49]} 29. a3 {[%emt 0:00:23]} c6 {[%emt 0:03:20]} 30. Rh1 {[%emt 0:02:10]} Nhf5 {[%emt 0:00:32]} 31. Nxf5 {[%emt 0:00:15]} Nxf5 {[%emt 0:00:05]} 32. Re1 {[%emt 0:00:20]} Ng7 {[%emt 0:04:07]} 33. Kg3 {[%emt 0:03:16]} Re8 {[%emt 0:00:14]} 34. Rxe8 {[%emt 0:00:56]} Nxe8 {[%emt 0:00:05]} 35. Ne2 {[%emt 0:00:16]} Ng7 {[%emt 0:01:38]} 36. Kf3 {[%emt 0:01:53]} Ne6 {[%emt 0:00:19]} 37. c4 {[%emt 0:01:06]} dxc4 {[%emt 0:00:41]} 38. dxc4 {[%emt 0:00:05]} Nxg5+ {[%emt 0:00:07]} 39. Kf4 {[%emt 0:00:03]} Kf6 {[%emt 0:00:09]} 40. Nd4 {[%emt 0:00:22]} Ne6+ {[%emt 0:00:06]} 41. Nxe6 {[%emt 0:00:06]} Kxe6 {[%emt 0:00:07]} 42. Kg5 {[%emt 0:00:06]} Ke5 {[%emt 0:00:06]} 43. b3 {[%emt 0:00:09]} Kd4 {[%emt 0:00:04]} 44. Kh4 {[%emt 0:00:09]} Kc3 {[%emt 0:00:04]} 45. b4 {[%emt 0:00:10]} Kxc4 {[%emt 0:00:05]} 46. Kg5 {[%emt 0:00:02]} Kb3 {[%emt 0:00:04]} 47. b5 {[%emt 0:00:02]} cxb5 {[%emt 0:00:06]} 48. a4 {[%emt 0:00:01]} bxa4 {[%emt 0:00:04]} 0-1

[Event "9th Sharjah Cup Women 2018"]
[Site "Sharjah"]
[Date "2018.12.16"]
[Round "4"]
[White "Al-Shamsi, Ousha"]
[Black "Patil, Mitali"]
[Result "0-1"]
[ECO "B01"]
[WhiteElo "1429"]
[BlackElo "2081"]
[Annotator "NA"]
[PlyCount "70"]
[EventDate "2018.12.14"]
[EventType "swiss"]
[EventCountry "UAE"]
[SourceTitle "playchess.com"]
[Source "ChessBase"]
[SourceQuality "1"]
[TimeControl "5400+30"]

1. e4 {[%emt 0:00:00]} d5 {[%emt 0:00:00]} 2. exd5 {[%emt 0:00:00]} Qxd5 {[%emt 0:00:00]} 3. Nc3 {[%emt 0:00:00]} Qa5 {[%emt 0:00:00]} 4. d4 {[%emt 0:00:06]} Nf6 {[%emt 0:00:00]} 5. Nf3 {[%emt 0:00:15]} Bg4 {[%emt 0:00:00]} 6. Be2 {[%emt 0:00:40]} e6 {[%emt 0:01:00]} 7. O-O {[%emt 0:13:51]} Nbd7 {[%emt 0:01:02]} 8. h3 {[%emt 0:04:37]} Bh5 {[%emt 0:00:38]} 9. Bd2 {[%emt 0:00:46]} c6 {[%emt 0:00:12]} 10. Re1 {[%emt 0:12:48]} Qc7 {[%emt 0:00:20]} 11. a3 {[%emt 0:06:14]} Bd6 {[%emt 0:05:40]} 12. b4 {[%emt 0:11:44]} O-O {[%emt 0:00:21]} 13. Na2 {[%emt 0:11:13]} Ne4 {[%emt 0:04:22]} 14. Be3 {[%emt 0:00:16]} a5 {[%emt 0:08:34]} 15. Qd3 {[%emt 0:06:28]} Bg6 {[%emt 0:18:30]} 16. Qb3 {[%emt 0:03:38]} Be7 {[%emt 0:09:49]} 17. c4 {[%emt 0:01:56]} f5 {[%emt 0:02:42]} 18. d5 {[%emt 0:05:26]} exd5 {[%emt 0:04:14]} 19. cxd5 {[%emt 0:00:37]} Bf7 {[%emt 0:01:11]} 20. Rac1 {[%emt 0:03:36]} Qb8 {[%emt 0:10:34]} 21. Nc3 {[%emt 0:04:33]} Nxc3 {[%emt 0:02:11]} 22. Qxc3 {[%emt 0:00:45]} axb4 {[%emt 0:00:24]} 23. axb4 {[%emt 0:00:36]} Bxd5 {[%emt 0:00:30]} 24. Bc4 {[%emt 0:01:42]} Nf6 {[%emt 0:01:53]} 25. Bd4 {[%emt 0:04:32]} Qd8 {[%emt 0:01:43]} 26. Ng5 {[%emt 0:01:31]} Re8 {[%emt 0:09:44]} 27. Qg3 {[%emt 0:01:37]} Nh5 {[%emt 0:10:28]} 28. Ne6 {[%emt 0:02:48]} Nxg3 {[%emt 0:02:16]} 29. Nxd8 {[%emt 0:00:03]} Bxc4 {[%emt 0:03:04]} 30. Rxc4 {[%emt 0:01:12]} Raxd8 {[%emt 0:01:32]} 31. fxg3 {[%emt 0:00:10]} b5 {[%emt 0:00:12]} 32. Bb6 {[%emt 0:00:26]} Bc5+ {[%emt 0:01:07]} 33. Rxc5 {[%emt 0:00:52]} Rxe1+ {[%emt 0:00:06]} 34. Kf2 {[%emt 0:00:37]} Rde8 {[%emt 0:00:19]} 35. Rxc6 {[%emt 0:01:05]} R1e6 {[%emt 0:00:50]} 0-1

[Event "9th Sharjah Cup Women 2018"]
[Site "Sharjah"]
[Date "2018.12.17"]
[Round "5"]
[White "Alieva, Alexandra"]
[Black "Khukhashvili, Sopiko"]
[Result "0-1"]
[ECO "B40"]
[WhiteElo "2102"]
[BlackElo "2338"]
[Annotator "NA"]
[PlyCount "66"]
[EventDate "2018.12.14"]
[EventType "swiss"]
[EventCountry "UAE"]
[SourceTitle "playchess.com"]
[Source "ChessBase"]
[SourceQuality "1"]
[TimeControl "5400+30"]

{[%evp 22,62,25,33,31,32767,24,0,12,0,9,-221,-236,32767,32767,-227,-260,-227,-243,-243,-289,-279,-246,-212,-242,32767,-263,-246,-240,-248,-310,-302,-339,-326,-379,-370,-339,-311,-406,-391,-407,-591,-602]} 1. e4 {[%emt 0:00:00]} c5 {[%emt 0:00:00]} 2. Nf3 {[%emt 0:00:00]} e6 {[%emt 0:00:00]} 3. b3 {[%emt 0:00:00]} d6 {[%emt 0:00:12]} 4. Bb2 {[%emt 0:01:15] B50: Sicilian: 2...d6, Miscellaneous} Bd7 {[%emt 0:00:05]} 5. d4 {[%emt 0:00:45]} cxd4 {[%emt 0:00:08]} 6. Nxd4 {[%emt 0:00:10]} Nf6 {[%emt 0:00:11]} 7. Bd3 {[%emt 0:04:24]} Nc6 {[%emt 0:00:08]} (7... Na6 8. c4 Be7 9. Nc3 O-O 10. O-O Nb4 11. Be2 a6 {1-0 (57) Antipov,M (2593)-Dubov,D (2703) Sochi 2018}) 8. c4 {[%emt 0:00:27]} Be7 {[%emt 0:02:38]} 9. O-O {[%emt 0:00:43]} O-O {[%emt 0:00:12]} 10. Nd2 {[%emt 0:06:17]} a6 {[%emt 0:00:38]} 11. N2f3 {[%emt 0:04:36]} Qa5 {[%emt 0:08:08]} 12. Nxc6 $146 {[%emt 0:03:43]} ({Predecessor:} 12. a3 Rfd8 13. b4 Qh5 14. Qb3 Nxd4 15. Nxd4 {½-½ (75) Hruby,M (2102)-Orak,L (2323) Pula 2012}) 12... Bxc6 {[%emt 0:00:18]} 13. e5 {[%emt 0:04:05]} Bxf3 {[%emt 0:02:34]} 14. Qxf3 {[%emt 0:03:00]} dxe5 {[%emt 0:00:02]} 15. Qxb7 {[%emt 0:02:03]} Bc5 {[%emt 0:00:42]} 16. Bxe5 $2 {[%emt 0:21:23]} (16. Qf3 $11) 16... Bxf2+ $1 {[%emt 0:00:23] Discovered Attack (Double check)} 17. Rxf2 {[%emt 0:00:23]} Qxe5 {[%emt 0:00:07]} 18. Raf1 {[%emt 0:00:12]} Ng4 {[%emt 0:02:48] Double Attack} 19. g3 {[%emt 0:05:44]} Nxf2 {[%emt 0:00:15]} 20. Rxf2 {[%emt 0:00:04]} Rad8 {[%emt 0:00:52]} 21. Qe4 {[%emt 0:00:30]} Qa1+ {[%emt 0:07:22]} 22. Kg2 {[%emt 0:00:18]} g6 {[%emt 0:00:06]} 23. c5 {[%emt 0:00:20]} Qc3 {[%emt 0:10:02]} 24. Bxa6 {[%emt 0:07:05]} Qxc5 {[%emt 0:00:24]} 25. a4 {[%emt 0:00:49]} Rd4 {[%emt 0:01:49]} 26. Qf3 {[%emt 0:00:43]} Rd5 {[%emt 0:00:26]} 27. Bd3 {[%emt 0:01:35]} Qd4 {[%emt 0:00:29]} 28. Be4 {[%emt 0:03:31]} Re5 {[%emt 0:00:07]} 29. Bc2 {[%emt 0:02:17]} Re3 {[%emt 0:01:26]} 30. Qb7 {[%emt 0:00:11]} Qe5 {[%emt 0:01:41]} 31. b4 $19 {[%emt 0:00:14]} (31. Bd1 {was necessary.}) 31... Re2 {[%emt 0:00:04]} 32. b5 {[%emt 0:00:56]} Rxf2+ {[%emt 0:00:05]} 33. Kxf2 {[%emt 0:00:03]} Qc5+ {[%emt 0:00:11]} 0-1